bitfinex-derivatives/quotes_SOLF0:USTF0_20240924
["timestamp","ask_amount","ask_price","bid_price","bid_amount"]
[1727138842434,3.45017682,144.4,144.33,3.4642]
[1727138842740,23.98,144.42,144.33,3.4642]
[1727138843239,27.41457457,144.42,144.33,3.4642]
[1727138843445,3.4627,144.4,144.33,3.4642]
[1727138844342,27.41457457,144.42,144.31,23.98]
[1727138844538,23.98,144.42,144.31,23.98]
[1727138844736,23.98,144.42,144.35,3.4637]
[1727138845341,23.98,144.42,144.32,1.3729]
[1727138845846,23.98,144.42,144.32,4.8373]
[1727138846433,23.98,144.38,144.27,1.3618]
[1727138847240,3.4204506,144.43,144.29,23.98]
[1727138847241,23.98,144.4,144.29,23.98]
[1727138847739,3.4631,144.39,144.33,3.4641]
[1727138849650,3.4631,144.39,144.27,1.3618]
[1727138849651,3.4626,144.41,144.36,3.4636]
[1727138849848,3.4626,144.41,144.31,23.98]
[1727138850344,3.4627,144.4,144.35,3.4637]
[1727138850544,23.98,144.45,144.31,23.98]
[1727138850755,3.4625,144.41,144.36,3.4634]
[1727138851133,23.98,144.45,144.33,23.98]
[1727138851343,25.8151,144.48,144.36,23.98]
[1727138851738,25.8151,144.48,144.38,3.4631]
[1727138851739,3.4618,144.44,144.38,3.4631]
[1727138853944,3.47020097,144.44,144.31,107.16]
[1727138854247,3.4617,144.44,144.36,23.98]
[1727138854443,1.3468,144.48,144.36,23.98]
[1727138855038,23.98,144.47,144.36,23.98]
[1727138855249,23.98,144.47,144.33,26.7161]
[1727138855443,23.98,144.45,144.33,26.7161]
[1727138855644,3.4626,144.41,144.35,3.4638]
[1727138855841,23.98,144.45,144.33,26.7161]
[1727138856047,3.47609147,144.44,144.33,26.7161]
[1727138856242,23.98,144.47,144.35,23.98]
[1727138856445,3.462,144.43,144.37,3.4632]
[1727138856740,23.98,144.47,144.37,3.4632]
[1727138856941,3.4623,144.42,144.36,3.4636]
[1727138857649,3.53776853,144.44,144.33,26.7161]
[1727138857952,23.98,144.45,144.33,26.7161]
[1727138858450,3.4628,144.4,144.34,3.464]
[1727138858757,1.3468,144.48,144.33,1.393]
[1727138858758,3.47435897,144.42,144.33,1.393]
[1727138859045,23.98,144.38,144.28,1.3555]
[1727138859249,3.4636,144.37,144.28,25.3355]
[1727138859449,3.4636,144.37,144.31,3.4647]
[1727138860351,23.98,144.38,144.28,1.3555]
[1727138860744,3.4636,144.37,144.31,3.4646]
[1727138860945,3.51334488,144.39,144.31,3.4646]
[1727138861249,3.51334488,144.39,144.28,25.3355]
[1727138861548,3.4638,144.36,144.3,3.4649]
[1727138862348,0.4875,144.44,144.28,25.3355]
[1727138862546,23.98,144.41,144.28,25.3355]
[1727138862846,23.98,144.37,144.28,1.3555]
[1727138863054,23.98,144.37,144.24,2.8813]
[1727138863249,23.98,144.34,144.24,2.8813]
[1727138864252,23.98,144.37,144.25,23.98]
[1727138864654,23.98,144.39,144.3,3.465]
[1727138865355,23.98,144.39,144.28,23.98]
[1727138865654,23.98,144.41,144.28,23.98]
[1727138866054,23.98,144.39,144.28,23.98]
[1727138866555,3.50104022,144.41,144.28,23.98]
[1727138866757,23.98,144.42,144.28,23.98]
[1727138866949,3.4636,144.36,144.3,3.4649]
[1727138867460,3.97325192,144.44,144.3,23.98]
[1727138867461,23.98,144.42,144.3,23.98]
[1727138867649,3.4631,144.38,144.3,23.98]
[1727138868046,3.4631,144.38,144.33,3.4643]
[1727138868250,3.97325192,144.44,144.32,23.98]
[1727138868446,3.48575192,144.44,144.33,2.7842]
[1727138868751,23.98,144.45,144.33,6.2484]
[1727138869458,23.98,144.42,144.33,2.7842]
[1727138869660,27.52256204,144.42,144.33,2.7842]
[1727138870651,27.52256204,144.42,144.33,6.2485]
[1727138870856,27.52256204,144.42,144.33,2.7842]
[1727138871449,23.98,144.37,144.24,1.4386]
[1727138871653,3.4642,144.34,144.25,2.8031]
[1727138871853,3.4642,144.34,144.28,3.4654]
[1727138872653,3.4644,144.33,144.28,3.4654]
[1727138872867,3.44204907,144.34,144.25,2.8031]
[1727138873052,23.98,144.32,144.25,2.8031]
[1727138873362,0.7811,144.41,144.19,3.4676]
[1727138873363,23.98,144.3,144.19,3.4676]
[1727138873661,3.46761895,144.29,144.17,23.98]
[1727138874260,3.4662,144.26,144.2,3.4673]
[1727138874563,23.98,144.3,144.17,23.98]
[1727138874752,3.466,144.27,144.21,3.467]
[1727138874952,27.49130658,144.3,144.17,23.98]
[1727138875261,3.4667,144.24,144.18,3.4679]
[1727138875465,23.98,144.28,144.15,28.1288]
[1727138875754,3.4674,144.21,144.15,7.6174]
[1727138875954,23.98,144.23,144.15,2.8148]
[1727138876553,23.98,144.23,144.1,23.98]
[1727138876765,27.36457801,144.23,144.1,23.98]
[1727138877069,3.4679,144.19,144.12,3.4692]
[1727138879870,23.98,144.2,144.09,2.7274]
[1727138880368,3.4688,144.15,144.09,6.1974]
[1727138880573,23.98,144.2,144.09,6.1974]
[1727138880574,23.98,144.18,144.09,1.3355]
[1727138880759,3.4699,144.1,144.04,3.4713]
[1727138881167,27.43470322,144.11,144.0,1.3225]
[1727138881367,3.4709,144.06,144.0,1.3225]
[1727138881563,23.98,144.11,144.0,1.3225]
[1727138881765,3.4703,144.08,144.02,3.4718]
[1727138881967,1.3599,144.12,144.0,25.3025]
[1727138882571,23.98,144.13,144.0,25.3025]
[1727138882963,23.98,144.13,144.03,23.98]
[1727138883162,23.98,144.16,144.03,23.98]
[1727138883564,3.4696,144.12,144.05,3.471]
[1727138883766,23.98,144.16,144.03,23.98]
[1727138883971,23.98,144.16,144.05,23.98]
[1727138884467,23.98,144.18,144.07,23.98]
[1727138884771,27.43256285,144.18,144.08,1.4463]
[1727138885067,3.4682,144.17,144.08,1.4463]
[1727138885369,7.01348406,144.17,144.08,2.8423]
[1727138885573,3.4684,144.16,144.09,3.4699]
[1727138890461,3.4684,144.16,144.08,2.8423]
[1727138890663,23.98,144.21,144.08,2.8423]
[1727138890869,23.98,144.21,144.09,1.4572]
[1727138891069,1.3365,144.24,144.12,23.98]
[1727138892066,3.4672,144.22,144.12,23.98]
[1727138892265,23.98,144.25,144.12,23.98]
[1727138892565,3.4665,144.24,144.17,3.468]
[1727138892766,23.98,144.25,144.12,23.98]
[1727138893278,23.98,144.23,144.1,23.98]
[1727138893464,23.98,144.2,144.09,1.4572]
[1727138893773,6.91136224,144.19,144.12,3.4694]
[1727138894164,3.44346224,144.19,144.12,3.4694]
[1727138894472,3.44346224,144.19,144.09,1.4572]
[1727138894473,23.98,144.18,144.09,1.4572]
[1727138894671,27.46650117,144.18,144.08,2.8423]
[1727138894876,3.4686,144.16,144.1,3.4699]
[1727138895078,3.4686,144.16,144.08,2.8423]
[1727138895774,3.4686,144.16,144.11,3.4696]
[1727138895974,23.98,144.15,144.08,2.8423]
[1727138896373,3.4694,144.13,144.08,6.3127]
[1727138896774,27.43681155,144.15,144.08,2.8423]
[1727138896982,27.43681155,144.15,144.04,2.854]
[1727138896983,23.98,144.13,144.04,2.854]
[1727138897166,23.98,144.11,144.02,1.3931]
[1727138897580,23.98,144.11,144.02,4.8648]
[1727138897785,23.98,144.11,143.97,23.98]
[1727138898078,23.98,144.11,143.99,23.98]
[1727138898474,23.98,144.08,143.98,1.3729]
[1727138898774,23.98,144.11,143.98,1.3729]
[1727138899408,3.4705,144.08,144.02,3.4716]
[1727138899774,3.4705,144.08,143.98,1.3729]
[1727138900780,3.4705,144.08,144.03,3.4715]
[1727138901570,3.50090265,144.13,144.01,3.4719]
[1727138901774,23.98,144.06,143.96,2.8052]
[1727138902179,3.4713,144.05,143.96,2.8052]
[1727138902474,23.98,144.08,143.96,26.7852]
[1727138902675,3.4707,144.07,144.01,3.4719]
[1727138903277,23.98,144.08,144.01,3.4719]
[1727138904280,23.98,144.08,144.0,3.4723]
[1727138904480,23.98,144.06,143.96,2.8052]
[1727138904682,23.98,144.03,143.96,2.8052]
[1727138904982,23.98,144.01,143.82,236.9531]
[1727138905190,23.98,144.01,143.86,23.98]
[1727138905375,23.98,143.99,143.86,23.98]
[1727138905689,23.98,143.99,143.92,3.4741]
[1727138905690,3.4731,143.97,143.92,3.4741]
[1727138905875,23.98,143.99,143.86,23.98]
[1727138906080,23.98,144.01,143.89,23.98]
[1727138906376,3.4728,143.98,143.89,23.98]
[1727138907184,3.4726,143.99,143.89,23.98]
[1727138907386,23.98,143.99,143.84,1.3248]
[1727138907586,23.98,143.96,143.84,25.3048]
[1727138908475,3.474,143.93,143.84,25.3048]
[1727138908884,1.3897,144.02,143.84,1.3248]
[1727138908885,23.98,143.94,143.84,1.3248]
[1727138909090,3.46405228,143.93,143.84,1.3248]
[1727138909389,23.98,143.91,143.83,1.3407]
[1727138909689,3.4744,143.92,143.83,1.3407]
[1727138910183,3.4741,143.93,143.83,1.3407]
[1727138910389,3.4741,143.93,143.84,23.98]
[1727138910982,3.4743,143.92,143.84,23.98]
[1727138911281,1.3897,144.02,143.83,1.3407]
[1727138911282,23.98,143.93,143.83,1.3407]
[1727138911481,3.4736,143.95,143.83,25.3207]
[1727138911677,23.98,143.98,143.86,23.98]
[1727138911884,23.98,143.98,143.87,1.4091]
[1727138912586,3.4732,143.97,143.87,1.4091]
[1727138913278,3.4733,143.96,143.92,3.474]
[1727138913984,23.98,144.01,143.88,23.98]
[1727138914284,1.3897,144.02,143.91,23.98]
[1727138914485,3.4726,143.99,143.94,3.4736]
[1727138914792,1.3897,144.02,143.92,1.4124]
[1727138915287,93.8097,144.11,143.93,23.98]
[1727138915288,0.4961,144.05,143.93,23.98]
[1727138915492,0.4961,144.05,143.93,25.3252]
[1727138915691,23.98,144.06,143.93,25.3252]
[1727138916183,3.4718,144.03,143.93,25.3252]
[1727138917392,3.4718,144.03,143.98,3.4728]
[1727138917791,23.98,144.06,143.93,25.3252]
[1727138918000,23.98,144.08,143.96,23.98]
[1727138918286,23.98,144.11,143.98,23.98]
[1727138918592,27.48090265,144.13,144.0,23.98]
[1727138918791,27.48090265,144.13,144.01,2.7861]
[1727138918990,3.4699,144.11,144.05,3.4709]
[1727138919184,23.98,144.13,144.01,2.7861]
[1727138919390,27.46446946,144.13,144.01,2.7861]
[1727138919588,27.46446946,144.13,144.06,3.4707]
[1727138919803,23.98,144.13,144.01,2.7861]
[1727138919992,3.4703,144.09,144.03,3.4715]
[1727138920290,27.5151956,144.13,144.01,2.7861]
[1727138920496,3.4705,144.08,144.02,3.4717]
[1727138920787,3.4705,144.08,144.01,2.7861]
[1727138920788,23.98,144.08,144.01,2.7861]
[1727138921189,3.4709,144.06,144.01,2.7861]
[1727138921995,23.98,144.08,144.01,2.7861]
[1727138922591,23.98,144.05,143.97,1.3176]
[1727138923386,23.98,144.1,143.98,23.98]
[1727138923689,3.4709,144.07,143.98,23.98]
[1727138924288,3.4709,144.07,144.02,3.4718]
[1727138924594,3.47391092,144.08,143.98,23.98]
[1727138924796,23.98,144.1,143.98,23.98]
[1727138925095,3.51073438,144.09,143.98,23.98]
[1727138925487,23.98,144.1,144.01,3.472]
[1727138925699,23.98,144.07,143.97,1.3176]
[1727138926196,23.98,144.07,144.01,3.472]
[1727138926582,3.4709,144.06,144.01,3.472]
[1727138926991,23.98,144.07,144.02,3.4718]
[1727138927290,27.4508,144.07,144.02,3.4718]
[1727138927996,23.98,144.07,143.97,1.3176]
[1727138928294,23.98,144.05,143.97,1.3176]
[1727138928592,3.472,144.02,143.97,1.3176]
[1727138928792,23.98,144.05,143.97,1.3176]
[1727138929091,27.44140484,144.05,143.97,4.7906]
[1727138929886,3.4717,144.03,143.97,1.3176]
[1727138930087,3.4717,144.03,143.98,3.4728]
[1727138930689,3.4718,144.02,143.97,4.7905]
[1727138930888,3.4718,144.02,143.97,3.4729]
[1727138931788,3.4717,144.03,143.97,3.4729]
[1727138931997,23.98,144.03,143.94,3.4737]
[1727138932196,23.98,144.0,143.94,3.4737]
[1727138932597,23.98,144.03,143.9,23.98]
[1727138933886,3.4721,144.01,143.9,23.98]
[1727138934191,4.76932417,144.04,143.93,23.98]
[1727138934497,23.98,144.05,143.93,23.98]
[1727138934895,3.4723,144.0,143.9,23.98]
[1727138935090,23.98,144.03,143.9,23.98]
[1727138935404,23.98,144.06,143.92,23.98]
[1727138935901,3.4721,144.01,143.97,3.4729]
[1727138936102,3.41673616,144.05,143.92,23.98]
[1727138936304,23.98,144.06,143.92,23.98]
[1727138936495,3.4719,144.02,143.98,3.4726]
[1727138937599,3.4719,144.02,143.92,23.98]
[1727138937900,3.45635251,144.04,143.92,23.98]
[1727138938100,23.98,144.06,143.92,23.98]
[1727138938303,3.4717,144.03,143.99,3.4725]
[1727138939603,3.4717,144.03,143.98,3.4727]
[1727138940603,3.42275349,144.04,143.92,23.98]
[1727138940807,23.98,144.06,143.9,23.98]
[1727138941009,23.98,144.04,143.9,23.98]
[1727138941308,3.40478797,144.03,143.92,23.98]
[1727138941510,23.98,144.06,143.92,23.98]
[1727138941808,3.4717,144.03,143.92,23.98]
[1727138942215,3.55108474,144.04,143.92,23.98]
[1727138942503,23.98,144.06,143.92,23.98]
[1727138942707,23.98,144.06,143.94,23.98]
[1727138942902,3.44579277,144.05,143.94,23.98]
[1727138943202,23.98,144.06,143.94,23.98]
[1727138943407,23.98,144.03,143.92,23.98]
[1727138943706,3.4722,144.01,143.97,3.4729]
[1727138944295,27.4991149,144.03,143.92,23.98]
[1727138944508,23.98,143.98,143.88,2.7405]
[1727138945103,3.4739,143.94,143.9,3.4746]
[1727138945403,23.98,143.96,143.88,2.7405]
[1727138945602,23.98,143.93,143.81,23.98]
[1727138945800,23.98,143.93,143.83,2.8107]
[1727138946033,23.98,143.96,143.84,23.98]
[1727138946596,23.98,143.96,143.83,2.8107]
[1727138946807,3.476,143.85,143.77,2.7438]
[1727138947110,23.98,143.85,143.77,4.1335]
[1727138947300,3.4762,143.84,143.78,3.4776]
[1727138947499,3.44558526,143.87,143.78,3.4776]
[1727138947700,23.98,143.88,143.78,3.4776]
[1727138947908,3.50264636,143.87,143.78,3.4776]
[1727138948412,3.476,143.85,143.79,3.4772]
[1727138948610,3.50264636,143.87,143.79,3.4772]
[1727138949403,23.98,143.88,143.77,4.1335]
[1727138949910,27.44820094,143.88,143.82,3.4766]
[1727138950811,30.92350094,143.88,143.82,3.4766]
[1727138951012,23.98,143.88,143.83,3.4763]
[1727138951211,23.98,143.88,143.77,4.1335]
[1727138951408,23.98,143.9,143.78,23.98]
[1727138951714,27.4028412,143.9,143.78,23.98]
[1727138951901,23.98,143.9,143.78,23.98]
[1727138952100,85.2544,143.97,143.77,4.1335]
[1727138952403,23.98,143.9,143.77,28.1135]
[1727138952602,27.49329132,143.9,143.77,28.1135]
[1727138953207,23.98,143.87,143.71,3.42923239]
[1727138953409,23.98,143.92,143.74,1.4509]
[1727138953410,23.98,143.85,143.74,1.4509]
[1727138953709,3.46341124,143.84,143.74,1.4509]
[1727138954009,23.98,143.87,143.74,1.4509]
[1727138954513,23.98,143.87,143.75,23.98]
[1727138955026,27.4556,143.87,143.82,3.4765]
[1727138955216,1.3917,143.89,143.75,23.98]
[1727138955513,3.4753,143.88,143.78,23.98]
[1727138955906,23.98,143.89,143.75,23.98]
[1727138956110,3.4759,143.86,143.82,3.4765]
[1727138956706,3.4755,143.87,143.83,3.4764]
[1727138959314,3.4753,143.88,143.84,3.4762]
[1727138959519,23.98,143.89,143.84,3.4762]
[1727138959832,27.455,143.89,143.84,3.4762]
[1727138960824,23.98,143.89,143.85,3.4759]
[1727138961318,23.98,143.89,143.78,23.98]
[1727138961319,27.455,143.89,143.84,3.4761]
[1727138961521,23.98,143.89,143.78,23.98]
[1727138962020,23.98,143.89,143.82,3.4764]
[1727138962315,23.98,143.89,143.75,23.98]
[1727138962516,3.4761,143.85,143.75,23.98]
[1727138962723,23.98,143.89,143.75,23.98]
[1727138963122,3.476,143.85,143.81,3.4767]
[1727138964124,3.476,143.85,143.82,3.4767]
[1727138964320,3.476,143.85,143.75,23.98]
[1727138964718,23.98,143.86,143.75,23.98]
[1727138965114,23.98,143.84,143.74,1.4509]
[1727138965319,23.98,143.86,143.74,1.4509]
[1727138966028,3.4766,143.83,143.79,3.4773]
[1727138966720,23.98,143.84,143.77,3.4777]
[1727138967023,23.98,143.84,143.74,1.4509]
[1727138967423,3.4769,143.81,143.77,3.4777]
[1727138967622,3.4769,143.81,143.74,1.4509]
[1727138968021,3.4766,143.83,143.79,3.4771]
[1727138969128,3.4767,143.82,143.79,3.4771]
[1727138969926,3.4769,143.81,143.78,3.4775]
[1727138970126,3.4769,143.81,143.74,1.4509]
[1727138970625,3.4772,143.8,143.74,1.4509]
[1727138970826,3.43956179,143.82,143.74,1.4509]
[1727138971335,3.477,143.81,143.77,3.4777]
[1727138971727,23.98,143.85,143.74,1.4509]
[1727138971926,23.98,143.87,143.76,23.98]
[1727138972432,27.4555,143.87,143.76,23.98]
[1727138973027,27.4555,143.87,143.83,3.4763]
[1727138973227,1.3912,143.91,143.78,23.98]
[1727138973228,23.98,143.9,143.78,23.98]
[1727138973527,3.54782608,143.89,143.85,3.4758]
[1727138973726,7.02282608,143.89,143.85,3.4758]
[1727138973923,23.98,143.9,143.85,3.4758]
[1727138974124,3.4761,143.85,143.76,23.98]
[1727138974329,27.50904347,143.87,143.74,1.4509]
[1727138974525,27.50904347,143.87,143.75,23.98]
[1727138974733,3.4759,143.86,143.82,3.4765]
[1727138974936,3.4759,143.86,143.75,23.98]
[1727138975429,27.4555,143.87,143.83,3.4764]
[1727138975734,3.4755,143.87,143.83,3.4764]
[1727138976130,3.4755,143.87,143.84,3.4761]
[1727138976734,27.39506677,143.89,143.84,3.4761]
[1727138976932,27.39506677,143.89,143.85,3.4757]
[1727138977340,3.4754,143.88,143.84,3.476]
[1727138977529,23.98,143.89,143.77,27.53349193]
[1727138977734,3.4749,143.9,143.77,27.53349193]
[1727138978348,3.4741,143.93,143.82,23.98]
[1727138978541,23.98,143.96,143.83,4.1399]
[1727138979446,3.474,143.94,143.9,3.4745]
[1727138979647,23.98,143.96,143.83,4.1399]
[1727138980147,3.4743,143.92,143.89,3.4749]
[1727138980351,23.98,143.96,143.89,3.4749]
[1727138980547,23.98,143.96,143.83,4.1399]
[1727138980744,3.4744,143.92,143.89,3.4749]
[1727138980940,0.4981,143.99,143.85,23.98]
[1727138981150,23.98,143.97,143.85,23.98]
[1727138981441,3.4735,143.95,143.85,23.98]
[1727138981648,27.41728271,143.97,143.85,23.98]
[1727138982146,23.98,143.95,143.83,4.1399]
[1727138982447,3.4746,143.91,143.87,3.4754]
[1727138983548,3.4746,143.91,143.88,3.4752]
[1727138984547,3.4743,143.92,143.83,4.1399]
[1727138984752,3.4743,143.92,143.89,3.475]
[1727138985158,3.4733,143.96,143.93,3.4739]
[1727138985652,23.98,143.97,143.85,23.98]
[1727138985851,23.98,143.97,143.9,3.4745]
[1727138986039,23.98,143.97,143.83,4.1399]
[1727138986451,3.4741,143.93,143.83,4.1399]
[1727138986640,23.98,143.97,143.83,4.1399]
[1727138986839,27.94851646,143.99,143.86,23.98]
[1727138987356,27.45041646,143.99,143.86,23.98]
[1727138987851,23.98,143.99,143.86,23.98]
[1727138988057,3.4732,143.97,143.86,23.98]
[1727138988755,3.4732,143.97,143.93,3.4738]
[1727138989053,23.98,143.99,143.84,107.42]
[1727138989254,23.98,143.96,143.84,107.42]
[1727138989654,23.98,143.98,143.87,23.98]
[1727138989857,23.98,143.98,143.93,3.4738]
[1727138991249,3.4732,143.97,143.93,3.4738]
[1727138991656,23.98,143.98,143.84,107.42]
[1727138991858,3.4737,143.95,143.84,107.42]
[1727138993356,3.4737,143.95,143.84,23.98]
[1727138993758,3.4737,143.95,143.92,3.4742]
[1727138993959,23.98,143.98,143.84,23.98]
[1727138994153,23.98,143.96,143.83,87.5799]
[1727138994459,23.98,143.96,143.89,3.4748]
[1727138994662,3.474,143.93,143.89,3.4748]
[1727138995150,3.474,143.93,143.9,3.4746]
[1727138995351,3.4743,143.92,143.83,87.5799]
[1727138995756,3.4743,143.92,143.88,3.4751]
[1727138996454,6.90636786,143.92,143.88,3.4751]
[1727138996655,3.43206786,143.92,143.83,87.5799]
[1727138996855,23.98,143.94,143.83,87.5799]
[1727138997060,3.4749,143.9,143.86,3.4756]
[1727138998562,23.98,143.89,143.83,1.4419]
[1727138998768,23.98,143.91,143.83,1.4419]
[1727138999466,3.4751,143.89,143.86,3.4756]
[1727138999665,3.5502156,143.9,143.86,3.4756]
[1727139000667,23.98,143.91,143.83,1.4419]
[1727139000855,3.46745027,143.91,143.83,1.4419]
[1727139001058,23.98,143.92,143.83,1.4419]
[1727139001259,3.4748,143.9,143.86,3.4755]
[1727139001760,27.50517735,143.92,143.83,1.4419]
[1727139002258,3.52517735,143.92,143.83,1.4419]
[1727139002462,15.02,143.91,143.83,1.4419]
[1727139002666,3.4748,143.9,143.86,3.4755]
[1727139003257,15.02,143.89,143.83,1.4419]
[1727139003462,15.02,143.89,143.79,15.02]
[1727139003659,15.02,143.87,143.79,1.3208]
[1727139003859,21.92225368,143.87,143.82,3.4765]
[1727139004057,21.92225368,143.87,143.79,1.3208]
[1727139004369,3.4757,143.86,143.79,1.3208]
[1727139004768,27.57297161,143.86,143.79,1.3208]
[1727139005066,24.04,143.86,143.8,3.4771]
[1727139005459,27.52671396,143.86,143.8,3.4771]
[1727139005860,27.52671396,143.86,143.81,3.4768]
[1727139006362,27.52671396,143.86,143.79,1.3208]
[1727139006567,27.52671396,143.86,143.81,3.4769]
[1727139006770,3.476,143.85,143.81,3.4769]
[1727139007665,31.00251396,143.86,143.81,3.4769]
[1727139009672,3.476,143.85,143.81,3.4769]
[1727139009969,24.04,143.84,143.72,24.04]
[1727139010172,3.4768,143.82,143.72,1.349]
[1727139010374,24.04,143.84,143.72,25.389]
[1727139010577,27.52671396,143.86,143.72,25.389]
[1727139010775,27.52671396,143.86,143.74,24.04]
[1727139011071,27.52605023,143.89,143.72,1.349]
[1727139011276,3.4753,143.88,143.78,24.04]
[1727139011473,3.4753,143.88,143.79,4.0807]
[1727139011673,27.45647533,143.89,143.83,3.4762]
[1727139012170,3.4756,143.87,143.83,3.4762]
[1727139013177,3.4756,143.87,143.79,4.0807]
[1727139013873,3.4756,143.87,143.83,3.4763]
[1727139014175,27.45647533,143.89,143.79,4.0807]
[1727139014673,3.4766,143.83,143.79,2.68]
[1727139014863,3.4766,143.83,143.75,1.4522]
[1727139015065,3.4766,143.83,143.75,4.2976]
[1727139015267,24.04,143.87,143.75,4.2976]
[1727139015480,24.04,143.89,143.82,3.4765]
[1727139015770,3.4761,143.85,143.75,4.2976]
[1727139015969,3.4761,143.85,143.75,28.3376]
[1727139016168,2.6747,143.94,143.77,24.04]
[1727139016169,24.04,143.91,143.77,24.04]
[1727139016375,3.4755,143.87,143.77,27.52626086]
[1727139016671,27.4427826,143.91,143.77,24.04]
[1727139016976,3.4756,143.87,143.84,3.4762]
[1727139017269,24.04,143.98,143.85,24.04]
[1727139017467,3.4736,143.95,143.86,2.8025]
[1727139017667,24.04,143.98,143.87,1.3803]
[1727139017874,3.4738,143.94,143.87,1.3803]
[1727139018070,24.04,143.98,143.87,1.3803]
[1727139018267,107.13384431,144.0,143.87,25.4203]
[1727139018574,3.4729,143.98,143.87,25.4203]
[1727139018778,4.90780066,144.0,143.87,25.4203]
[1727139019172,3.4731,143.97,143.87,25.4203]
[1727139019492,3.4731,143.97,143.93,3.4739]
[1727139019685,24.04,144.01,143.89,24.04]
[1727139019876,2.1788,144.04,143.92,24.04]
[1727139020075,1.3899,144.04,143.92,24.04]
[1727139020374,3.472,144.02,143.92,24.04]
[1727139020580,1.3899,144.04,143.92,24.04]
[1727139021171,3.4718,144.03,143.92,24.04]
[1727139021373,3.4718,144.03,143.94,24.04]
[1727139021575,24.04,144.06,143.97,3.4729]
[1727139021884,3.472,144.02,143.97,3.4729]
[1727139022284,83.46,144.17,143.97,3.4729]
[1727139022285,224.0,144.31,144.01,24.04]
[1727139022575,2.745,144.25,144.02,83.44]
[1727139022879,24.04,144.23,144.09,24.04]
[1727139023179,3.53604055,144.23,144.1,28.8666]
[1727139023379,26.785,144.25,144.1,25.3968]
[1727139023572,30.18550681,144.25,144.1,25.3968]
[1727139023769,6.14550681,144.25,144.1,25.3968]
[1727139023980,30.18550681,144.25,144.14,3.4689]
[1727139024168,30.18550681,144.25,144.1,25.3968]
[1727139024378,26.785,144.25,144.13,24.04]
[1727139024671,99.61617616,144.27,144.15,24.04]
[1727139024976,24.04,144.24,144.1,25.3968]
[1727139025176,27.56363434,144.24,144.1,25.3968]
[1727139025587,27.56363434,144.24,144.12,3.4692]
[1727139025879,99.61617616,144.27,144.15,24.04]
[1727139026072,75.57617616,144.27,144.15,24.04]
[1727139026472,3.43513569,144.26,144.15,24.04]
[1727139026780,75.57617616,144.27,144.14,3.4687]
[1727139027081,75.57617616,144.27,144.13,24.04]
[1727139027082,75.57617616,144.27,144.15,24.04]
[1727139027577,24.04,144.25,144.12,2.7055]
[1727139027883,103.07846115,144.27,144.15,24.04]
[1727139028183,3.4663,144.26,144.18,3.4679]
[1727139028384,79.11375838,144.27,144.15,24.04]
[1727139028585,24.04,144.25,144.13,24.04]
[1727139029081,3.4675,144.21,144.13,27.509]
[1727139029385,24.04,144.25,144.13,27.509]